bitfinex-derivatives/quotes_BTCF0:USTF0_20250422
["timestamp","ask_amount","ask_price","bid_price","bid_amount"]
[1745288799237,0.6948266,88232.0,88231.0,0.36678245]
[1745288799439,0.6948266,88232.0,88231.0,0.36686245]
[1745288799740,0.58148,88232.0,88231.0,0.36686245]
[1745288799936,0.6948266,88232.0,88231.0,0.36686245]
[1745288800239,0.6948266,88232.0,88231.0,0.25351455]
[1745288800438,0.58148,88232.0,88231.0,0.25351455]
[1745288800738,0.58148,88232.0,88231.0,0.36686245]
[1745288800937,0.58156,88232.0,88231.0,0.36686245]
[1745288801137,0.51186,88232.0,88231.0,0.36686245]
[1745288801342,0.44206,88232.0,88231.0,0.36686245]
[1745288801528,0.36296,88232.0,88231.0,0.36686245]
[1745288801932,0.36288,88232.0,88231.0,0.36686245]
[1745288802132,0.36296,88232.0,88231.0,0.36686245]
[1745288802337,0.36288,88232.0,88231.0,0.36678245]
[1745288802843,0.4761466,88232.0,88231.0,0.3044279]
[1745288803033,0.61984491,88232.0,88231.0,0.3044279]
[1745288803342,0.25720491,88232.0,88231.0,0.3044279]
[1745288803528,0.25720491,88232.0,88231.0,0.36678245]
[1745288803727,0.51150491,88232.0,88231.0,0.25343455]
[1745288803931,0.77230491,88232.0,88231.0,0.25351455]
[1745288804126,0.41150491,88232.0,88231.0,0.25351455]
[1745288805137,0.41150491,88232.0,88231.0,0.36686245]
[1745288806140,0.21505831,88232.0,88231.0,0.36686245]
[1745288807035,0.07128,88232.0,88231.0,0.36686245]
[1745288807240,0.07128,88232.0,88231.0,0.36678245]
[1745288807537,0.0712,88232.0,88231.0,0.3044279]
[1745288807737,0.07128,88232.0,88231.0,0.36678245]
[1745288809341,0.00016,88232.0,88231.0,0.36678245]
[1745288810136,0.00016,88232.0,88231.0,0.48012245]
[1745288812243,8e-05,88232.0,88231.0,0.4177679]
[1745288812844,0.0792,88235.0,88231.0,0.4177679]
[1745288812845,0.0792,88235.0,88234.0,0.113344]
[1745288813038,0.1512,88235.0,88234.0,0.113344]
[1745288813440,0.1512,88235.0,88234.0,0.17569855]
[1745288813840,0.15128,88235.0,88234.0,0.17569855]
[1745288814248,0.15128,88235.0,88234.0,0.36769855]
[1745288814548,0.15228,88235.0,88234.0,0.36969855]
[1745288814948,0.15228,88235.0,88234.0,0.36769855]
[1745288815140,0.07408,88235.0,88234.0,0.37369855]
[1745288815845,0.07308,88235.0,88234.0,0.36969855]
[1745288816048,0.07408,88235.0,88234.0,0.37469855]
[1745288817340,0.07408,88235.0,88234.0,0.312344]
[1745288817747,0.074,88235.0,88234.0,0.312344]
[1745288818344,0.074,88235.0,88234.0,0.37469855]
[1745288818538,0.07408,88235.0,88234.0,0.37469855]
[1745288820749,0.2559227,88235.0,88234.0,0.37469855]
[1745288821053,0.14258,88235.0,88234.0,0.37469855]
[1745288821845,0.14258,88235.0,88234.0,0.37369855]
[1745288822449,0.1425,88235.0,88234.0,0.311344]
[1745288822749,0.14258,88235.0,88234.0,0.37469855]
[1745288822954,0.2559227,88235.0,88234.0,0.37469855]
[1745288823353,0.2549227,88235.0,88234.0,0.37477855]
[1745288823655,0.2559227,88235.0,88234.0,0.37477855]
[1745288823952,0.2659227,88235.0,88234.0,0.37477855]
[1745288824151,0.2659227,88235.0,88234.0,0.37377855]
[1745288824455,0.2659227,88235.0,88234.0,0.37369855]
[1745288824654,0.2659227,88235.0,88234.0,0.37377855]
[1745288824843,0.2649227,88235.0,88234.0,0.36969855]
[1745288825043,0.2659227,88235.0,88234.0,0.37377855]
[1745288825643,0.2649227,88235.0,88234.0,0.36977855]
[1745288825848,0.6267227,88235.0,88234.0,0.26043455]
[1745288826354,0.6267227,88235.0,88234.0,0.26035455]
[1745288826549,0.6267227,88235.0,88234.0,0.25943455]
[1745288827251,0.6267227,88235.0,88234.0,0.19708]
[1745288827647,0.2649227,88235.0,88234.0,0.19308]
[1745288827847,0.9899787,88235.0,88234.0,0.003]
[1745288828046,0.1133569,88224.0,88223.0,0.00016993]
[1745288828253,0.1133569,88224.0,88201.0,0.0724]
[1745288828254,0.1133659,88217.0,88207.0,0.1133779]
[1745288828455,0.1333659,88217.0,88211.0,0.1133731]
[1745288829159,0.2777659,88217.0,88216.0,0.19710109]
[1745288830863,0.2797659,88217.0,88216.0,0.19810109]
[1745288831755,0.2797659,88217.0,88216.0,0.12168999]
[1745288831756,0.3931219,88217.0,88216.0,0.12168999]
[1745288831959,0.7222819,88217.0,88216.0,0.12168999]
[1745288832146,0.7222819,88217.0,88216.0,0.00108]
[1745288832345,0.7222819,88217.0,88200.0,0.105]
[1745288832346,0.1133864,88201.0,88200.0,0.105]
[1745288832554,0.2225464,88201.0,88200.0,0.105]
[1745288832759,0.2225464,88201.0,88200.0,0.16735455]
[1745288832952,0.3659464,88201.0,88200.0,0.16735455]
[1745288833154,0.3659464,88201.0,88200.0,0.35935455]
[1745288833768,0.3669464,88201.0,88200.0,0.35935455]
[1745288834559,0.3679464,88201.0,88200.0,0.35935455]
[1745288837358,0.3679464,88201.0,88200.0,0.297]
[1745288837863,0.3679464,88201.0,88200.0,0.35935455]
[1745288839849,0.3669464,88201.0,88200.0,0.35935455]
[1745288840157,0.3679464,88201.0,88200.0,0.35935455]
[1745288840361,0.3679464,88201.0,88200.0,0.36035455]
[1745288840955,0.3679464,88201.0,88200.0,0.36043455]
[1745288841470,0.4813264,88201.0,88200.0,0.28408625]
[1745288841755,0.4813264,88201.0,88200.0,0.28416625]
[1745288842162,0.4813264,88201.0,88200.0,0.25203135]
[1745288842460,0.4813264,88201.0,88200.0,5e-08]
[1745288843158,0.4813264,88201.0,88200.0,0.00781235]
[1745288843366,0.4813264,88201.0,88200.0,5e-08]
[1745288843565,0.4793264,88201.0,88200.0,5e-08]
[1745288843860,1.02744,88201.0,88164.0,0.0051041]
[1745288844059,0.1134327,88165.0,88164.0,0.0051041]
[1745288844254,0.4325527,88165.0,88164.0,0.0051041]
[1745288844657,0.4325527,88165.0,88164.0,0.0051841]
[1745288844954,0.5736527,88165.0,88164.0,0.0051841]
[1745288845458,0.5736527,88165.0,88164.0,0.0051041]
[1745288845660,0.5736527,88165.0,88164.0,0.0051841]
[1745288846061,0.5746527,88165.0,88164.0,0.0051841]
[1745288846760,0.5756527,88165.0,88164.0,0.0051841]
[1745288847273,0.002,88165.0,88164.0,0.8428421]
[1745288847451,0.00017014,88173.0,88172.0,0.1134237]
[1745288847655,0.00017014,88173.0,88172.0,0.3608]
[1745288848052,0.00017014,88173.0,88172.0,0.5106]
[1745288848257,0.00017014,88173.0,88172.0,0.7026]
[1745288848457,0.00017014,88173.0,88172.0,1.066016]
[1745288848659,0.00017014,88173.0,88172.0,1.1794397]
[1745288849064,0.11459254,88173.0,88172.0,0.7026]
[1745288849467,0.11459254,88173.0,88172.0,0.7036]
[1745288849468,0.11559254,88173.0,88172.0,0.7036]
[1745288849664,0.11559254,88173.0,88172.0,0.70368]
[1745288850367,0.11559254,88173.0,88172.0,0.34288]
[1745288850663,0.22559254,88173.0,88172.0,0.19308]
[1745288850963,0.22559254,88173.0,88172.0,0.193]
[1745288851170,0.36959254,88173.0,88172.0,0.19308]
[1745288852167,0.36859254,88173.0,88172.0,0.19208]
[1745288852369,0.36959254,88173.0,88172.0,0.193]
[1745288852562,0.36959254,88173.0,88172.0,0.19308]
[1745288852960,0.36859254,88173.0,88172.0,0.19208]
[1745288853264,0.36859254,88173.0,88172.0,0.19308]
[1745288853466,0.36959254,88173.0,88172.0,0.19208]
[1745288853665,0.36959254,88173.0,88172.0,0.19308]
[1745288855167,0.36859254,88173.0,88172.0,0.19208]
[1745288855366,0.36959254,88173.0,88172.0,0.19308]
[1745288855674,0.36859254,88173.0,88172.0,0.19208]
[1745288855865,0.36959254,88173.0,88172.0,0.19308]
[1745288856368,0.11117014,88173.0,88172.0,0.19308]
[1745288856563,0.08133014,88173.0,88172.0,0.3065037]
[1745288857370,0.08133014,88173.0,88172.0,0.4500037]
[1745288858566,0.08033014,88173.0,88172.0,0.4490037]
[1745288858769,0.08133014,88173.0,88172.0,0.4500037]
[1745288859368,0.08133014,88173.0,88172.0,0.4490037]
[1745288859566,0.08133014,88173.0,88172.0,0.4500037]
[1745288859770,0.08133014,88173.0,88172.0,0.8108037]
[1745288860172,0.19475254,88173.0,88172.0,0.8108037]
[1745288860769,0.30475254,88173.0,88172.0,0.33658]
[1745288861667,0.37995254,88173.0,88172.0,0.33658]
[1745288862278,0.37895254,88173.0,88172.0,0.33658]
[1745288862469,0.37995254,88173.0,88172.0,0.33658]
[1745288863274,0.38403254,88173.0,88172.0,0.33658]
[1745288863574,0.38403254,88173.0,88172.0,0.26728]
[1745288863871,0.38403254,88173.0,88172.0,0.2672]
[1745288864075,0.38403254,88173.0,88172.0,0.26728]
[1745288864265,0.38403254,88173.0,88172.0,0.19308]
[1745288864871,0.38303254,88173.0,88172.0,0.19308]
[1745288865171,0.38403254,88173.0,88172.0,0.19308]
[1745288865367,0.49744854,88173.0,88172.0,0.193]
[1745288865566,0.49744854,88173.0,88172.0,0.192]
[1745288865874,0.38403254,88173.0,88172.0,0.193]
[1745288866265,0.38403254,88173.0,88172.0,0.19308]
[1745288867574,0.38303254,88173.0,88172.0,0.19208]
[1745288867775,0.38403254,88173.0,88172.0,0.19308]
[1745288868167,0.38303254,88173.0,88172.0,0.19208]
[1745288868371,0.38403254,88173.0,88172.0,0.19308]
[1745288868876,0.38303254,88173.0,88172.0,0.193]
[1745288869070,0.38403254,88173.0,88172.0,0.19308]
[1745288869270,0.38403254,88173.0,88172.0,0.00108]
[1745288870179,0.85824854,88173.0,88172.0,0.00108]
[1745288870375,0.1134327,88165.0,88164.0,0.0051041]
[1745288870583,0.7442327,88165.0,88164.0,0.0051041]
[1745288871384,0.8890327,88165.0,88164.0,0.0051041]
[1745288871775,0.8900327,88165.0,88164.0,0.0051041]
[1745288872071,2.5347927,88165.0,88164.0,0.0061041]
[1745288872478,2.6482167,88165.0,88164.0,0.0061041]
[1745288872676,2.6482167,88165.0,88164.0,0.0061841]
[1745288872882,2.6482167,88165.0,88164.0,0.0061041]
[1745288873085,2.6482167,88165.0,88164.0,8e-05]
[1745288873283,0.1134572,88146.0,88145.0,0.0717]
[1745288873476,0.7075372,88146.0,88145.0,0.0717]
[1745288874173,0.8544372,88146.0,88145.0,0.0717]
[1745288874574,0.8554372,88146.0,88145.0,0.0717]
[1745288874770,0.1134649,88140.0,88139.0,0.0711]
[1745288875682,0.2234649,88140.0,88139.0,8e-05]
[1745288876178,0.3005649,88140.0,88139.0,0.07418]
[1745288876387,0.111,88140.0,88139.0,0.6194662]
[1745288876685,0.001,88140.0,88139.0,0.6195462]
[1745288876882,0.002,88140.0,88139.0,0.6195462]
[1745288877378,0.1154649,88140.0,88139.0,0.6195462]
[1745288879084,0.2154649,88140.0,88139.0,0.50608]
[1745288879483,0.1134662,88139.0,88138.0,0.0051056]
[1745288879678,0.5443662,88139.0,88138.0,0.0051056]
[1745288880081,0.5443662,88139.0,88138.0,0.0051856]
[1745288880583,0.5453662,88139.0,88138.0,0.0051856]
[1745288880780,0.5463662,88139.0,88138.0,0.0051856]
[1745288881374,0.5463662,88139.0,88138.0,0.0051056]
[1745288881593,1.0206222,88139.0,88138.0,0.0051056]
[1745288882179,1.0206222,88139.0,88138.0,0.0051856]
[1745288882380,1.0206222,88139.0,88138.0,0.0051056]
[1745288882687,1.0206222,88139.0,88138.0,0.0051856]
[1745288883279,1.0196222,88139.0,88138.0,0.0051856]
[1745288883475,0.1134932,88118.0,88117.0,0.0714]
[1745288883677,0.3067732,88118.0,88117.0,0.0714]
[1745288883886,0.3067732,88118.0,88112.0,0.00510711]
[1745288883887,0.1134945,88117.0,88112.0,0.00510711]
[1745288884187,0.1134984,88114.0,88113.0,0.0714]
[1745288884388,0.1134997,88113.0,88112.0,0.00510711]
[1745288884590,0.7328997,88113.0,88112.0,0.00510711]
[1745288885181,0.74447998,88113.0,88112.0,0.00518711]
[1745288885686,0.3608,88113.0,88112.0,0.00518711]
[1745288885892,0.3608,88113.0,88112.0,0.11868811]
[1745288886093,0.4742997,88113.0,88112.0,0.00518711]
[1745288886287,0.5642997,88113.0,88112.0,0.00518711]
[1745288886491,0.5842997,88113.0,88112.0,0.00518711]
[1745288886885,0.4708,88113.0,88112.0,0.11868811]
[1745288887188,0.5842997,88113.0,88112.0,0.00518711]
[1745288887392,0.5852997,88113.0,88112.0,0.00518711]
[1745288887591,0.7308997,88113.0,88112.0,0.00518711]
[1745288888488,0.112,88113.0,88112.0,0.00510711]
[1745288888686,0.002,88113.0,88112.0,0.11868811]
[1745288888883,0.0891657,88113.0,88112.0,0.26268811]
[1745288889681,0.0018057,88113.0,88112.0,0.26268811]
[1745288889881,0.1891657,88113.0,88112.0,0.26268811]
[1745288890193,0.3026654,88113.0,88112.0,0.14918711]
[1745288890487,0.3026654,88113.0,88112.0,0.14910711]
[1745288890692,0.3026654,88113.0,88112.0,0.14918711]
[1745288891490,0.3068254,88113.0,88112.0,0.14918711]
[1745288891687,0.3068254,88113.0,88112.0,0.07628711]
[1745288891988,0.3058254,88113.0,88112.0,0.07620711]
[1745288892299,0.6676254,88113.0,88112.0,0.00518711]
[1745288892489,0.6668197,88113.0,88112.0,1e-08]
[1745288892693,0.6678197,88113.0,88112.0,8.001e-05]
[1745288892887,0.6678197,88113.0,88112.0,1e-08]
[1745288893087,0.6678197,88113.0,88112.0,8.001e-05]
[1745288893288,0.6668197,88113.0,88112.0,8.001e-05]
[1745288893591,0.6678197,88113.0,88112.0,8e-05]
[1745288893794,0.55432,88113.0,88102.0,0.113513]
[1745288893994,0.55432,88113.0,88101.0,0.06626131]
[1745288893995,0.204,88112.0,88101.0,0.06626131]
[1745288894180,0.1135138,88102.0,88101.0,0.06626131]
[1745288894490,0.1062,88102.0,88101.0,0.17977641]
[1745288894684,0.1062,88102.0,88101.0,0.17985641]
[1745288894880,0.1062,88102.0,88101.0,0.1135951]
[1745288895092,0.2197138,88102.0,88101.0,8e-05]
[1745288895281,0.1062,88102.0,88101.0,8e-05]
[1745288895589,0.2207138,88102.0,88101.0,8e-05]
[1745288895983,0.2207138,88102.0,88100.0,0.105]
[1745288895984,0.1135151,88101.0,88100.0,0.105]
[1745288896186,0.5501151,88101.0,88100.0,0.105]
[1745288897181,0.4035151,88101.0,88100.0,0.105]
[1745288897487,0.4055151,88101.0,88100.0,0.105]
[1745288897786,0.2998151,88101.0,88100.0,0.105]
[1745288898382,0.1898151,88101.0,88100.0,0.105]
[1745288899095,0.3621151,88101.0,88100.0,0.10508]
[1745288899484,0.3621151,88101.0,88100.0,0.105]
[1745288899685,0.3621151,88101.0,88100.0,0.10508]
[1745288899883,0.3621151,88101.0,88100.0,0.105]
[1745288900590,0.54722311,88101.0,88100.0,0.10508]
[1745288900789,0.54722311,88101.0,88100.0,0.105]
[1745288900987,0.54722311,88101.0,88100.0,0.10508]
[1745288901185,0.2155151,88101.0,88100.0,0.105]
[1745288901390,0.3602151,88101.0,88100.0,0.105]
[1745288901590,0.3602151,88101.0,88100.0,0.10508]
[1745288901996,0.3602151,88101.0,88100.0,0.105]
[1745288902289,0.3602151,88101.0,88100.0,0.10508]
[1745288902487,0.3602151,88101.0,88100.0,0.105]
[1745288902692,0.3602151,88101.0,88100.0,0.10508]
[1745288903290,0.4607751,88101.0,88100.0,0.10508]
[1745288903688,0.3602151,88101.0,88100.0,0.10508]
[1745288903888,0.4607751,88101.0,88100.0,0.10508]
[1745288904298,0.93508311,88101.0,88100.0,0.10508]
[1745288904491,0.93508311,88101.0,88100.0,0.105]
[1745288904794,0.93508311,88101.0,88100.0,0.10508]
[1745288904997,1.18508311,88101.0,88100.0,0.105]
[1745288905196,1.18508311,88101.0,88100.0,0.10508]
[1745288905389,0.93508311,88101.0,88100.0,0.10508]
[1745288906603,0.8215751,88101.0,88100.0,0.10508]
[1745288906797,0.002,88101.0,88100.0,0.10508]
[1745288906996,0.2160751,88101.0,88100.0,0.10508]
[1745288907698,0.3160751,88101.0,88100.0,0.10508]
[1745288908192,0.4607751,88101.0,88100.0,0.10508]
[1745288909502,0.4607751,88101.0,88100.0,0.2185964]
[1745288909503,0.10256,88101.0,88100.0,0.2185964]
[1745288910797,0.002,88101.0,88100.0,0.2185964]
[1745288910999,0.10256,88101.0,88100.0,0.3321044]
[1745288911594,0.10256,88101.0,88100.0,0.4051044]
[1745288912202,0.10256,88101.0,88100.0,0.17808]
[1745288912501,0.10256,88101.0,88100.0,0.2915964]
[1745288912702,0.002,88101.0,88100.0,0.2915964]
[1745288913005,0.10256,88101.0,88100.0,0.7659044]
[1745288913205,0.2160751,88101.0,88100.0,0.7659044]
[1745288913505,0.3260751,88101.0,88100.0,0.652308]
[1745288913707,0.3260751,88101.0,88100.0,0.53888]
[1745288914004,0.3260751,88101.0,88100.0,0.5388]
[1745288914197,0.3260751,88101.0,88100.0,0.53888]
[1745288914596,0.3939751,88101.0,88100.0,0.53888]
[1745288915000,0.3939751,88101.0,88100.0,0.5388]
[1745288915200,0.3939751,88101.0,88100.0,0.53888]
[1745288916196,0.3939751,88101.0,88100.0,0.6523964]
[1745288916398,0.3939751,88101.0,88100.0,0.7234964]
[1745288916598,0.3260751,88101.0,88100.0,0.3626964]
[1745288917206,0.3250751,88101.0,88100.0,0.17618]
[1745288917406,0.3260751,88101.0,88100.0,0.1761]
[1745288917808,0.3953751,88101.0,88100.0,0.1761]
[1745288918102,0.3953751,88101.0,88100.0,0.17618]
[1745288919108,0.3943751,88101.0,88100.0,0.17618]
[1745288919306,0.3953751,88101.0,88100.0,0.17618]
[1745288919512,0.7561751,88101.0,88100.0,0.105]
[1745288919809,0.7561751,88101.0,88100.0,0.0965606]
[1745288920006,0.7561751,88101.0,88100.0,0.0964806]
[1745288920204,0.7561751,88101.0,88100.0,0.0965606]
[1745288920502,0.86968311,88101.0,88100.0,0.0965606]
[1745288920709,1.11868311,88101.0,88100.0,0.0965606]
[1745288920902,1.11968311,88101.0,88100.0,0.0965606]
[1745288921105,1.30778311,88101.0,88100.0,0.0965606]
[1745288921297,1.11868311,88101.0,88100.0,0.0965606]
[1745288921702,1.11968311,88101.0,88100.0,0.0965606]
[1745288921902,1.11868311,88101.0,88100.0,0.0965606]
[1745288922104,1.11968311,88101.0,88100.0,0.0965606]
[1745288922314,1.11868311,88101.0,88100.0,0.0965606]
[1745288922505,1.11968311,88101.0,88100.0,0.0965606]
[1745288923309,0.1135473,88076.0,88075.0,0.0703]
[1745288923512,0.23056,88076.0,88075.0,0.0703]
[1745288923708,0.23056,88076.0,88075.0,0.1838486]
[1745288923917,0.3441073,88076.0,88075.0,0.0703]
[1745288924608,0.3451073,88076.0,88075.0,0.07038]
[1745288924812,0.5015724,88076.0,88075.0,0.07038]
[1745288925212,0.5025724,88076.0,88075.0,0.07038]
[1745288926413,0.5025724,88076.0,88075.0,0.0703]
[1745288926611,0.5025724,88076.0,88075.0,8e-05]
[1745288927106,0.1135551,88070.0,88069.0,0.0678]
[1745288927313,0.2235551,88070.0,88069.0,0.0678]
[1745288927711,0.3642551,88070.0,88069.0,0.0678]
[1745288928305,0.3662551,88070.0,88069.0,0.0678]
[1745288928815,0.3662551,88070.0,88069.0,0.06788]
[1745288929002,0.3662551,88070.0,88069.0,0.0678]
[1745288929205,0.1135667,88061.0,88060.0,0.00511012]
[1745288929510,0.1427,88070.0,88060.0,0.00511012]
[1745288929711,0.0737,88068.0,88064.0,0.0567812]
[1745288929912,0.1135588,88068.0,88067.0,0.113559]
[1745288930311,0.1135588,88068.0,88067.0,0.112559]
[1745288930506,0.1135558,88070.0,88069.0,0.1125564]
[1745288930907,0.1135558,88070.0,88069.0,0.4723564]
[1745288931107,0.1872558,88070.0,88069.0,0.5419564]
[1745288931311,0.1872558,88070.0,88069.0,0.5409564]
[1745288931614,0.19567751,88070.0,88069.0,0.5399564]
[1745288932011,0.19667751,88070.0,88069.0,0.5399564]
[1745288932217,0.10878171,88070.0,88069.0,0.5399564]
[1745288932607,0.22233681,88070.0,88069.0,0.5399564]
[1745288933002,0.22233681,88070.0,88069.0,0.5400364]
[1745288933208,0.10878171,88070.0,88069.0,0.5400364]
[1745288933507,0.10978171,88070.0,88069.0,0.5420364]
[1745288933904,0.00942171,88070.0,88069.0,0.5400364]
[1745288934208,0.01042171,88070.0,88069.0,0.5450364]
[1745288935009,0.002,88070.0,88069.0,0.5450364]
[1745288935617,0.002,88070.0,88069.0,0.6585844]
[1745288936819,0.09936,88081.0,88080.0,0.056771]
[1745288937016,0.09936,88081.0,88080.0,0.6446452]
[1745288937618,0.09936,88081.0,88080.0,0.7878452]
[1745288937807,0.4287,88095.0,88080.0,0.7878452]
[1745288937808,0.1135286,88091.0,88083.0,0.1135383]
[1745288938008,0.008703,88094.0,88093.0,0.1125254]
[1745288938214,0.25599015,88096.0,88095.0,0.1125229]
[1745288938415,0.2128816,88096.0,88095.0,0.1125229]
[1745288938917,0.09936,88096.0,88095.0,0.1125229]
[1745288939113,0.20936,88096.0,88095.0,0.1115229]
[1745288939315,0.2128816,88096.0,88095.0,0.1115229]
[1745288939515,0.3228816,88096.0,88095.0,0.1115229]
[1745288939820,0.10036,88096.0,88095.0,0.1135229]
[1745288940118,0.3238816,88096.0,88095.0,0.1135229]
[1745288940517,0.2138816,88096.0,88095.0,0.1136029]
[1745288941211,0.2148816,88096.0,88095.0,0.1176029]
[1745288941911,0.2138816,88096.0,88095.0,0.1136029]
[1745288942116,0.22351728,88096.0,88095.0,0.1176029]
[1745288942505,0.33351728,88096.0,88095.0,0.1176029]
[1745288942715,0.10999568,88096.0,88095.0,0.1176029]
[1745288942913,0.10899568,88096.0,88095.0,0.1165229]
[1745288943111,0.10899568,88096.0,88095.0,0.1166029]
[1745288943316,0.31251728,88096.0,88095.0,0.1864029]
[1745288943625,0.31251728,88096.0,88095.0,0.07488]
[1745288943918,0.35251728,88096.0,88095.0,0.005]
[1745288944118,0.35251728,88096.0,88095.0,0.1186029]
[1745288945524,0.23899568,88096.0,88095.0,0.1186029]
[1745288946218,0.001,88096.0,88095.0,0.5508029]
[1745288946523,0.001,88096.0,88095.0,0.6214029]
[1745288947623,0.001,88096.0,88095.0,0.73491489]
[1745288948821,0.001,88096.0,88095.0,0.75266101]
[1745288949025,0.001,88096.0,88095.0,0.75266045]
[1745288949520,0.001,88096.0,88095.0,0.73491489]
[1745288951223,0.001,88096.0,88095.0,0.6214029]
[1745288951812,0.001,88096.0,88095.0,0.73491489]
[1745288953821,0.0708,88101.0,88100.0,0.1125164]
[1745288954430,0.0708,88101.0,88100.0,0.2619164]
[1745288955125,0.0708,88101.0,88100.0,0.2629164]
[1745288955830,0.14281838,88107.0,88103.0,0.1135126]
[1745288956025,0.0687,88106.0,88103.0,0.1135126]
[1745288956524,0.14281838,88107.0,88103.0,0.1135126]
[1745288956729,0.0567355,88136.0,88111.0,0.5675073]
[1745288957030,0.2093192,88131.0,88130.0,0.1134778]
[1745288957418,0.2803192,88131.0,88130.0,0.1134778]
[1745288957825,0.16684,88131.0,88130.0,0.1134778]
[1745288958932,0.16784,88131.0,88130.0,0.1134778]
[1745288959735,0.27784,88131.0,88130.0,0.1134778]
[1745288959927,0.2813165,88131.0,88130.0,0.1134778]
[1745288960129,0.26784,88131.0,88130.0,0.1144778]
[1745288960328,0.27649049,88131.0,88130.0,0.1144778]
[1745288960731,0.17649049,88131.0,88130.0,0.1144778]
[1745288962232,0.24919049,88131.0,88130.0,0.1144778]
[1745288963232,0.1447,88131.0,88130.0,0.1144778]
[1745288963834,0.2447,88131.0,88130.0,0.1144778]
[1745288964242,0.1447,88131.0,88130.0,0.1144778]
[1745288966439,0.2447,88131.0,88130.0,0.1144778]
[1745288966640,0.2347,88131.0,88130.0,0.1144778]
[1745288967348,0.1447,88131.0,88130.0,0.4752778]
[1745288968738,0.2447,88131.0,88130.0,0.4752778]
[1745288969046,0.1447,88131.0,88130.0,0.4752778]
[1745288971848,0.1447,88131.0,88130.0,0.5451778]
[1745288972043,0.1447,88131.0,88130.0,0.5441778]
[1745288972238,0.1447,88131.0,88130.0,0.5451778]
[1745288973345,0.1447,88131.0,88130.0,0.4752778]
[1745288974238,0.0737,88131.0,88130.0,0.5461778]
[1745288974951,0.0737,88131.0,88130.0,0.67118874]
[1745288975148,0.09584,88134.0,88133.0,0.1134739]
[1745288976246,0.09584,88134.0,88133.0,0.1164739]
[1745288976655,0.00017024,88139.0,88138.0,0.1134675]
[1745288977741,0.00017024,88139.0,88138.0,0.4742675]
[1745288977941,0.00017024,88139.0,88138.0,0.4752675]
[1745288978345,0.00017024,88139.0,88138.0,0.4762675]
[1745288978853,0.07207024,88139.0,88138.0,0.4762675]
[1745288979544,0.07207024,88139.0,88138.0,0.6252675]
[1745288980940,0.00017024,88139.0,88138.0,0.6252675]
[1745288984452,0.0958,88145.0,88144.0,0.1134598]
[1745288984950,0.2249,88154.0,88153.0,0.1134482]
[1745288985346,0.0958,88157.0,88156.0,0.1134443]
[1745288985546,0.00025024,88162.0,88161.0,0.1134379]
[1745288985747,0.14905024,88162.0,88161.0,0.1134379]
[1745288987350,0.23905024,88162.0,88161.0,0.1124379]
[1745288988051,0.23905024,88162.0,88154.0,0.3608]
[1745288988052,0.60849317,88162.0,88145.0,0.36097024]
[1745288988255,0.0567292,88145.0,88125.0,0.3608]
[1745288988553,0.1134701,88136.0,88135.0,0.000108]
[1745288988752,0.3834701,88136.0,88135.0,0.000108]
[1745288989053,0.0567407,88128.0,88127.0,0.1134807]
[1745288989257,0.3085807,88128.0,88127.0,0.1134807]
[1745288989553,0.25184,88128.0,88127.0,0.4742807]
[1745288990254,0.1134829,88126.0,88125.0,0.000108]
[1745288990555,0.1134907,88120.0,88119.0,0.00017024]
[1745288990756,0.3534907,88120.0,88119.0,0.00017024]
[1745288991150,0.3534907,88120.0,88119.0,0.00025024]
[1745288991151,0.4453307,88120.0,88119.0,0.00025024]
[1745288991346,0.5174307,88120.0,88119.0,0.00025024]
[1745288991946,0.5174307,88120.0,88119.0,0.00117024]
[1745288992146,0.5174307,88120.0,88119.0,0.00125024]
[1745288992549,0.5184307,88120.0,88119.0,0.11474214]
[1745288992959,0.5184307,88120.0,88119.0,0.00125024]
[1745288993159,0.1135022,88111.0,88110.0,0.2284069]
[1745288993362,0.5143022,88111.0,88110.0,0.2284069]
[1745288994157,0.5143022,88111.0,88110.0,0.2284869]
[1745288994661,0.5143022,88111.0,88110.0,0.2294869]
[1745288994857,0.5143022,88111.0,88110.0,0.00208]
[1745288995659,0.52290389,88111.0,88110.0,0.00208]
[1745288995862,0.52290389,88111.0,88110.0,0.002]
[1745288996057,0.04860169,88111.0,88110.0,0.1155835]
[1745288996258,0.19890169,88111.0,88110.0,0.1145835]
[1745288996858,0.31340389,88111.0,88110.0,0.1145835]
[1745288997155,0.08270169,88111.0,88110.0,0.1145835]
[1745288997355,0.08170169,88111.0,88110.0,0.1870035]
[1745288997858,0.00860169,88111.0,88110.0,0.1860035]
[1745288998053,0.09188,88119.0,88118.0,0.1134932]
[1745288998655,0.09188,88119.0,88118.0,0.2569932]
[1745288998855,0.21609144,88123.0,88122.0,0.1134881]
[1745288999055,0.37957144,88123.0,88122.0,0.1134881]
[1745289000160,0.14259144,88123.0,88122.0,0.1134881]
[1745289000553,0.25707824,88123.0,88122.0,0.1134881]
[1745289000759,0.1134919,88119.0,88118.0,0.1445]
[1745289001261,0.1134919,88119.0,88118.0,0.1844932]
[1745289001464,0.1134919,88119.0,88118.0,0.1845732]
[1745289002156,0.2434919,88119.0,88118.0,8e-05]
[1745289002358,0.1135113,88104.0,88103.0,0.1453]
[1745289002562,0.0567517,88110.0,88103.0,0.0743]
[1745289002563,0.1135066,88108.0,88103.0,0.0743]
[1745289002758,0.02,88108.0,88107.0,0.170258]
[1745289002958,0.0918,88108.0,88107.0,0.170258]
[1745289003157,0.2053061,88108.0,88107.0,0.170258]
[1745289003563,0.02,88108.0,88107.0,0.170258]
[1745289003763,0.09188,88109.0,88108.0,0.1135061]
[1745289003959,0.09188,88109.0,88108.0,0.2604061]
[1745289004762,0.09188,88109.0,88108.0,0.3739021]
[1745289005365,0.09188,88109.0,88108.0,0.2290021]
[1745289005668,0.09188,88109.0,88108.0,0.1907061]
[1745289005669,0.2153848,88109.0,88108.0,0.1907061]
[1745289006068,0.01,88109.0,88108.0,0.1907061]
[1745289006264,0.3521822,88111.0,88110.0,0.1135035]
[1745289007464,0.3521822,88111.0,88110.0,0.1145035]
[1745289007770,0.3621822,88111.0,88110.0,0.1145035]
[1745289007965,0.7229822,88111.0,88110.0,0.002]
[1745289008264,0.7940822,88111.0,88110.0,0.002]
[1745289008467,0.7940822,88111.0,88110.0,0.00208]
[1745289008862,0.7940822,88111.0,88110.0,0.1145835]
[1745289009058,0.23868,88111.0,88110.0,0.1155835]
[1745289009460,0.23868,88111.0,88110.0,0.1145835]
[1745289009663,0.23868,88111.0,88110.0,0.1155835]
[1745289009865,0.09188,88111.0,88110.0,0.1155835]
[1745289010073,0.09188,88111.0,88110.0,0.1145835]
[1745289010262,0.09188,88111.0,88110.0,0.1155835]